[Event "Titled Tuesday Blitz June 6 Late 2023"]
[White "Perske, Thore"]
[Black "Ruiz Aguilar, Pablo Alexander"]
[WhiteFideId "12902195"]
[BlackFideId "4401352"]
[WhiteElo "2336"]
[BlackElo "2111"]
[Result "1-0"]
[Round "4"]
[TimeControl "180+2"]
[Date "2023.06.07"]
[WhiteClock "0:01:13"]
[BlackClock "0:00:19"]
[Board "116"]

1. d4 {[%clk 0:03:00]}  d5 {[%clk 0:02:58]} 2. Nf3 {[%clk 0:03:00]}  Nf6 {[%clk 0:02:58]} 3. g3 {[%clk 0:03:00]}  Bf5 {[%clk 0:02:57]} 4. Bg2 {[%clk 0:03:00]}  e6 {[%clk 0:02:58]} 5. c4 {[%clk 0:03:01]}  c6 {[%clk 0:02:58]} 6. Nc3 {[%clk 0:03:02]}  Nbd7 {[%clk 0:02:58]} 7. Nh4 {[%clk 0:03:02]}  Bg6 {[%clk 0:02:51]} 8. Nxg6 {[%clk 0:03:01]}  hxg6 {[%clk 0:02:52]} 9. Qb3 {[%clk 0:03:01]}  Qb6 {[%clk 0:02:48]} 10. Bf4 {[%clk 0:03:02]}  dxc4 {[%clk 0:02:44]} 11. Qxc4 {[%clk 0:03:02]}  Bb4 {[%clk 0:02:25]} 12. O-O {[%clk 0:02:56]}  O-O {[%clk 0:02:24]} 13. e4 {[%clk 0:02:53]}  Bxc3 {[%clk 0:02:19]} 14. bxc3 {[%clk 0:02:54]}  e5 {[%clk 0:02:17]} 15. Be3 {[%clk 0:02:51]}  exd4 {[%clk 0:02:16]} 16. cxd4 {[%clk 0:02:49]}  Qd8 {[%clk 0:02:11]} 17. h3 {[%clk 0:02:48]}  Nb6 {[%clk 0:02:11]} 18. Qc2 {[%clk 0:02:46]}  Re8 {[%clk 0:02:10]} 19. Rfe1 {[%clk 0:02:45]}  Qe7 {[%clk 0:02:06]} 20. Bg5 {[%clk 0:02:41]}  Qd7 {[%clk 0:02:06]} 21. Rad1 {[%clk 0:02:41]}  Rac8 {[%clk 0:02:00]} 22. Kh2 {[%clk 0:02:21]}  Nh7 {[%clk 0:01:46]} 23. Be3 {[%clk 0:02:20]}  Nf6 {[%clk 0:01:45]} 24. Bf3 {[%clk 0:02:19]}  Qe7 {[%clk 0:01:39]} 25. Bg5 {[%clk 0:02:18]}  Qa3 {[%clk 0:01:39]} 26. Kg2 {[%clk 0:02:16]}  Qa4 {[%clk 0:01:36]} 27. Qxa4 {[%clk 0:02:07]}  Nxa4 {[%clk 0:01:33]} 28. d5 {[%clk 0:01:58]}  Nc3 {[%clk 0:01:31]} 29. Bxf6 {[%clk 0:01:49]}  gxf6 {[%clk 0:01:24]} 30. Rc1 {[%clk 0:01:49]}  cxd5 {[%clk 0:01:23]} 31. exd5 {[%clk 0:01:50]}  Rxe1 {[%clk 0:01:23]} 32. Rxe1 {[%clk 0:01:50]}  Nb5 {[%clk 0:01:19]} 33. Re7 {[%clk 0:01:49]}  b6 {[%clk 0:01:03]} 34. d6 {[%clk 0:01:41]}  Nxd6 {[%clk 0:01:01]} 35. Rxa7 {[%clk 0:01:41]}  Rc5 {[%clk 0:00:58]} 36. Rd7 {[%clk 0:01:37]}  Nf5 {[%clk 0:00:57]} 37. Bd5 {[%clk 0:01:33]}  Rc2 {[%clk 0:00:52]} 38. Kg1 {[%clk 0:01:26]}  Rc1+ {[%clk 0:00:49]} 39. Kg2 {[%clk 0:01:26]}  Rc2 {[%clk 0:00:50]} 40. Bb3 {[%clk 0:01:23]}  Ne3+ {[%clk 0:00:28]} 41. Kf3 {[%clk 0:01:21]}  Rc3 {[%clk 0:00:23]} 42. fxe3 {[%clk 0:01:19]}  f5 {[%clk 0:00:22]} 43. Bxf7+ {[%clk 0:01:14]}  Kg7 {[%clk 0:00:21]} 44. Bb3+ {[%clk 0:01:13]}  Kf6 {[%clk 0:00:21]} 45. Rd6+ {[%clk 0:01:13]}  Ke5 {[%clk 0:00:19]} 46. Re6# {[%clk 0:01:13]} 1-0


[Site "https://www.chess.com"]

[Event "Titled Tuesday Blitz June 6 Late 2023"]
[White "Janaszak, Dawid"]
[Black "Prydun, Andriy"]
[WhiteFideId "1119206"]
[BlackFideId "14145898"]
[WhiteElo "2220"]
[BlackElo "2164"]
[Result "1-0"]
[Round "4"]
[TimeControl "180+2"]
[Date "2023.06.07"]
[WhiteClock "0:01:00"]
[BlackClock "0:00:01"]
[Board "118"]

1. e4 {[%clk 0:02:56]}  c5 {[%clk 0:02:58]} 2. Nc3 {[%clk 0:02:49]}  d6 {[%clk 0:02:57]} 3. f4 {[%clk 0:02:49]}  g6 {[%clk 0:02:55]} 4. Nf3 {[%clk 0:02:50]}  Bg7 {[%clk 0:02:54]} 5. Bc4 {[%clk 0:02:50]}  e6 {[%clk 0:02:52]} 6. O-O {[%clk 0:02:50]}  Ne7 {[%clk 0:02:52]} 7. d3 {[%clk 0:02:41]}  O-O {[%clk 0:02:50]} 8. Qe1 {[%clk 0:02:41]}  d5 {[%clk 0:02:49]} 9. Bb3 {[%clk 0:02:40]}  b5 {[%clk 0:02:26]} 10. Nxb5 {[%clk 0:02:28]}  Qb6 {[%clk 0:02:20]} 11. c4 {[%clk 0:02:24]}  Nbc6 {[%clk 0:02:10]} 12. Qh4 {[%clk 0:02:20]}  Qb7 {[%clk 0:01:31]} 13. f5 {[%clk 0:02:16]}  gxf5 {[%clk 0:01:24]} 14. Bh6 {[%clk 0:02:06]}  Ng6 {[%clk 0:01:18]} 15. Qh5 {[%clk 0:02:07]}  d4 {[%clk 0:00:58]} 16. Ng5 {[%clk 0:02:02]}  f6 {[%clk 0:00:57]} 17. Nd6 {[%clk 0:01:54]}  Qe7 {[%clk 0:00:49]} 18. Bxg7 {[%clk 0:01:51]}  Qxg7 {[%clk 0:00:48]} 19. exf5 {[%clk 0:01:44]}  exf5 {[%clk 0:00:38]} 20. Nh3 {[%clk 0:01:32]}  Nce5 {[%clk 0:00:34]} 21. Nf4 {[%clk 0:01:17]}  Nxf4 {[%clk 0:00:22]} 22. Rxf4 {[%clk 0:01:17]}  Qg5 {[%clk 0:00:22]} 23. Rh4 {[%clk 0:01:04]}  Qxh5 {[%clk 0:00:07]} 24. Rxh5 {[%clk 0:01:05]}  Nxd3 {[%clk 0:00:06]} 25. Rf1 {[%clk 0:01:05]}  Bd7 {[%clk 0:00:02]} 26. Bc2 {[%clk 0:01:05]}  Ne5 {[%clk 0:00:02]} 27. Bxf5 {[%clk 0:01:05]}  Bxf5 {[%clk 0:00:02]} 28. Nxf5 {[%clk 0:01:05]}  Rad8 {[%clk 0:00:02]} 29. Ne7+ {[%clk 0:01:05]}  Kg7 {[%clk 0:00:02]} 30. Nd5 {[%clk 0:01:06]}  f5 {[%clk 0:00:02]} 31. Nf4 {[%clk 0:01:07]}  Ng6 {[%clk 0:00:02]} 32. Ne6+ {[%clk 0:01:07]}  Kf6 {[%clk 0:00:02]} 33. Nxf8 {[%clk 0:01:07]}  Rxf8 {[%clk 0:00:02]} 34. Rhxf5+ {[%clk 0:01:07]}  Kg7 {[%clk 0:00:03]} 35. Rxc5 {[%clk 0:01:06]}  Rd8 {[%clk 0:00:01]} 36. Rd5 {[%clk 0:01:00]} 1-0


[Site "https://www.chess.com"]

[Event "Titled Tuesday Blitz June 6 Late 2023"]
[White "Filgueira, Hernan"]
[Black "Campos, Maria Jose"]
[WhiteFideId "101770"]
[BlackFideId "146803"]
[WhiteElo "2363"]
[BlackElo "2170"]
[Result "0-1"]
[Round "4"]
[TimeControl "180+2"]
[Date "2023.06.07"]
[WhiteClock "0:01:44"]
[BlackClock "0:02:20"]
[Board "123"]

1. c4 {[%clk 0:02:59]}  e6 {[%clk 0:02:59]} 2. Nc3 {[%clk 0:02:58]}  d5 {[%clk 0:02:58]} 3. d4 {[%clk 0:02:58]}  Nf6 {[%clk 0:02:58]} 4. cxd5 {[%clk 0:02:58]}  exd5 {[%clk 0:02:58]} 5. Bg5 {[%clk 0:02:58]}  c6 {[%clk 0:02:57]} 6. Qc2 {[%clk 0:02:58]}  Be7 {[%clk 0:02:56]} 7. e3 {[%clk 0:02:58]}  g6 {[%clk 0:02:56]} 8. Bd3 {[%clk 0:02:57]}  Nbd7 {[%clk 0:02:53]} 9. h3 {[%clk 0:02:56]}  Nb6 {[%clk 0:02:53]} 10. Nge2 {[%clk 0:02:53]}  O-O {[%clk 0:02:52]} 11. g4 {[%clk 0:02:51]}  Nc4 {[%clk 0:02:51]} 12. Bh6 {[%clk 0:02:47]}  Re8 {[%clk 0:02:50]} 13. Nf4 {[%clk 0:02:43]}  Nd6 {[%clk 0:02:50]} 14. O-O-O {[%clk 0:02:40]}  Bf8 {[%clk 0:02:50]} 15. Bxf8 {[%clk 0:02:36]}  Kxf8 {[%clk 0:02:50]} 16. g5 {[%clk 0:02:35]}  Nfe4 {[%clk 0:02:50]} 17. Bxe4 {[%clk 0:02:33]}  Nxe4 {[%clk 0:02:50]} 18. Nxe4 {[%clk 0:02:30]}  Rxe4 {[%clk 0:02:49]} 19. h4 {[%clk 0:02:29]}  Bf5 {[%clk 0:02:49]} 20. Qd2 {[%clk 0:02:28]}  c5 {[%clk 0:02:45]} 21. f3 {[%clk 0:02:20]}  Rxf4 {[%clk 0:02:39]} 22. exf4 {[%clk 0:02:17]}  Rc8 {[%clk 0:02:34]} 23. Rde1 {[%clk 0:01:59]}  cxd4+ {[%clk 0:02:30]} 24. Kd1 {[%clk 0:01:59]}  Qb6 {[%clk 0:02:24]} 25. a3 {[%clk 0:01:48]}  Qb3+ {[%clk 0:02:21]} 26. Ke2 {[%clk 0:01:44]}  Rc2 {[%clk 0:02:20]} 0-1


[Site "https://www.chess.com"]

[Event "Titled Tuesday Blitz June 6 Late 2023"]
[White "Pinheiro, Iung Alicio de O."]
[Black "Olsson, William"]
[WhiteFideId "2104350"]
[BlackFideId "1741721"]
[WhiteElo "2283"]
[BlackElo "2197"]
[Result "1-0"]
[Round "4"]
[TimeControl "180+2"]
[Date "2023.06.07"]
[WhiteClock "0:01:56"]
[BlackClock "0:01:42"]
[Board "124"]

1. d4 {[%clk 0:03:00]}  d5 {[%clk 0:02:59]} 2. c4 {[%clk 0:02:59]}  c6 {[%clk 0:02:59]} 3. Nc3 {[%clk 0:02:59]}  Nf6 {[%clk 0:02:59]} 4. cxd5 {[%clk 0:02:54]}  cxd5 {[%clk 0:02:59]} 5. Bf4 {[%clk 0:02:55]}  Nc6 {[%clk 0:02:52]} 6. e3 {[%clk 0:02:54]}  a6 {[%clk 0:02:48]} 7. Rc1 {[%clk 0:02:54]}  Bf5 {[%clk 0:02:44]} 8. Nf3 {[%clk 0:02:50]}  e6 {[%clk 0:02:44]} 9. Qb3 {[%clk 0:02:49]}  Qd7 {[%clk 0:02:17]} 10. Be2 {[%clk 0:02:31]}  Na5 {[%clk 0:02:06]} 11. Qb6 {[%clk 0:02:14]}  Nc4 {[%clk 0:01:58]} 12. Bxc4 {[%clk 0:02:09]}  dxc4 {[%clk 0:01:59]} 13. Ne5 {[%clk 0:02:09]}  Qd6 {[%clk 0:01:42]} 14. Qxb7 {[%clk 0:02:02]}  Rb8 {[%clk 0:01:42]} 15. Qxf7+ {[%clk 0:01:56]} 1-0


[Site "https://www.chess.com"]

[Event "Titled Tuesday Blitz June 6 Late 2023"]
[White "Pace, Christopher"]
[Black "Mei, Austin"]
[WhiteFideId "2610167"]
[BlackFideId "30948479"]
[WhiteElo "2323"]
[BlackElo "2125"]
[Result "1/2-1/2"]
[Round "4"]
[TimeControl "180+2"]
[Date "2023.06.07"]
[WhiteClock "0:00:05"]
[BlackClock "0:00:06"]
[Board "125"]

1. e4 {[%clk 0:02:56]}  e5 {[%clk 0:03:00]} 2. Nf3 {[%clk 0:02:54]}  Nc6 {[%clk 0:03:01]} 3. Bb5 {[%clk 0:02:51]}  a6 {[%clk 0:02:58]} 4. Ba4 {[%clk 0:02:46]}  Nf6 {[%clk 0:02:44]} 5. O-O {[%clk 0:02:39]}  Nxe4 {[%clk 0:02:43]} 6. Re1 {[%clk 0:02:38]}  Nc5 {[%clk 0:02:43]} 7. Nxe5 {[%clk 0:02:33]}  Nxe5 {[%clk 0:02:41]} 8. Rxe5+ {[%clk 0:02:33]}  Be7 {[%clk 0:02:41]} 9. Bb3 {[%clk 0:02:27]}  Nxb3 {[%clk 0:02:38]} 10. axb3 {[%clk 0:02:27]}  O-O {[%clk 0:02:38]} 11. d4 {[%clk 0:02:25]}  Bf6 {[%clk 0:02:37]} 12. Re1 {[%clk 0:02:23]}  d5 {[%clk 0:02:34]} 13. Bf4 {[%clk 0:02:16]}  Bf5 {[%clk 0:02:33]} 14. Nc3 {[%clk 0:02:10]}  Qd7 {[%clk 0:02:27]} 15. Ra5 {[%clk 0:01:34]}  c6 {[%clk 0:02:22]} 16. Ra1 {[%clk 0:01:28]}  Rfe8 {[%clk 0:02:21]} 17. Qd2 {[%clk 0:01:28]}  Re6 {[%clk 0:02:09]} 18. Na4 {[%clk 0:01:25]}  Rae8 {[%clk 0:01:34]} 19. Nc5 {[%clk 0:01:19]}  Rxe1+ {[%clk 0:01:34]} 20. Rxe1 {[%clk 0:01:20]}  Rxe1+ {[%clk 0:01:30]} 21. Qxe1 {[%clk 0:01:21]}  Qe7 {[%clk 0:01:24]} 22. Qxe7 {[%clk 0:01:14]}  Bxe7 {[%clk 0:01:25]} 23. Nxb7 {[%clk 0:01:10]}  Bxc2 {[%clk 0:01:25]} 24. Na5 {[%clk 0:01:02]}  c5 {[%clk 0:01:21]} 25. Be3 {[%clk 0:00:40]}  cxd4 {[%clk 0:01:13]} 26. Bxd4 {[%clk 0:00:41]}  f6 {[%clk 0:01:11]} 27. Kf1 {[%clk 0:00:27]}  Bd3+ {[%clk 0:01:10]} 28. Ke1 {[%clk 0:00:23]}  Bb5 {[%clk 0:01:03]} 29. Kd2 {[%clk 0:00:20]}  Kf7 {[%clk 0:01:00]} 30. Kc3 {[%clk 0:00:18]}  Ke6 {[%clk 0:00:59]} 31. Nb7 {[%clk 0:00:18]}  Kd7 {[%clk 0:00:54]} 32. Nc5+ {[%clk 0:00:18]}  Kc6 {[%clk 0:00:54]} 33. Nd3 {[%clk 0:00:17]}  Bd6 {[%clk 0:00:47]} 34. Nb4+ {[%clk 0:00:17]}  Kd7 {[%clk 0:00:45]} 35. Nxd5 {[%clk 0:00:17]}  Bxh2 {[%clk 0:00:43]} 36. g3 {[%clk 0:00:17]}  h5 {[%clk 0:00:39]} 37. Ne3 {[%clk 0:00:08]}  Ke6 {[%clk 0:00:31]} 38. Ng2 {[%clk 0:00:05]}  g5 {[%clk 0:00:27]} 39. Ne1 {[%clk 0:00:04]}  h4 {[%clk 0:00:22]} 40. gxh4 {[%clk 0:00:03]}  gxh4 {[%clk 0:00:22]} 41. Nf3 {[%clk 0:00:03]}  Bf4 {[%clk 0:00:09]} 42. Nxh4 {[%clk 0:00:03]}  Bg5 {[%clk 0:00:08]} 43. Nf3 {[%clk 0:00:04]}  Bf4 {[%clk 0:00:08]} 44. Nd2 {[%clk 0:00:04]}  Kf5 {[%clk 0:00:08]} 45. Nc4 {[%clk 0:00:05]}  Ke4 {[%clk 0:00:08]} 46. Be3 {[%clk 0:00:05]}  Bc7 {[%clk 0:00:07]} 47. Bd4 {[%clk 0:00:05]}  f5 {[%clk 0:00:06]} 1/2-1/2


[Site "https://www.chess.com"]

[Event "Titled Tuesday Blitz June 6 Late 2023"]
[White "Aggelis, Nikolaos"]
[Black "Ward, Ieuan C"]
[WhiteFideId "4213220"]
[BlackFideId "406627"]
[WhiteElo "2189"]
[BlackElo "2319"]
[Result "1-0"]
[Round "4"]
[TimeControl "180+2"]
[Date "2023.06.07"]
[WhiteClock "0:01:26"]
[BlackClock "0:00:13"]
[Board "126"]

1. c4 {[%clk 0:02:57]}  e6 {[%clk 0:02:55]} 2. g3 {[%clk 0:02:57]}  d5 {[%clk 0:02:55]} 3. Nf3 {[%clk 0:02:55]}  Nf6 {[%clk 0:02:55]} 4. Bg2 {[%clk 0:02:56]}  Be7 {[%clk 0:02:56]} 5. O-O {[%clk 0:02:57]}  O-O {[%clk 0:02:57]} 6. b3 {[%clk 0:02:55]}  b6 {[%clk 0:02:55]} 7. Bb2 {[%clk 0:02:55]}  Bb7 {[%clk 0:02:55]} 8. d3 {[%clk 0:02:56]}  c5 {[%clk 0:02:55]} 9. Qc2 {[%clk 0:02:53]}  Nbd7 {[%clk 0:02:48]} 10. Nbd2 {[%clk 0:02:48]}  Re8 {[%clk 0:02:47]} 11. e4 {[%clk 0:02:48]}  dxe4 {[%clk 0:02:17]} 12. Nxe4 {[%clk 0:02:39]}  Nxe4 {[%clk 0:02:14]} 13. dxe4 {[%clk 0:02:40]}  Qc7 {[%clk 0:02:12]} 14. Rfe1 {[%clk 0:02:28]}  e5 {[%clk 0:02:05]} 15. Nd2 {[%clk 0:02:24]}  Nf8 {[%clk 0:02:03]} 16. Nf1 {[%clk 0:02:21]}  Ne6 {[%clk 0:02:02]} 17. Ne3 {[%clk 0:02:22]}  Nd4 {[%clk 0:02:00]} 18. Bxd4 {[%clk 0:02:22]}  cxd4 {[%clk 0:01:58]} 19. Nd5 {[%clk 0:02:23]}  Bxd5 {[%clk 0:01:49]} 20. exd5 {[%clk 0:02:24]}  Bd6 {[%clk 0:01:47]} 21. h4 {[%clk 0:02:18]}  Rac8 {[%clk 0:01:43]} 22. Bh3 {[%clk 0:02:05]}  Rb8 {[%clk 0:01:43]} 23. h5 {[%clk 0:02:05]}  b5 {[%clk 0:01:38]} 24. Bf5 {[%clk 0:02:05]}  g6 {[%clk 0:01:37]} 25. hxg6 {[%clk 0:02:05]}  hxg6 {[%clk 0:01:30]} 26. Bxg6 {[%clk 0:02:06]}  fxg6 {[%clk 0:01:31]} 27. Qxg6+ {[%clk 0:02:03]}  Kf8 {[%clk 0:01:28]} 28. Qf6+ {[%clk 0:02:03]}  Kg8 {[%clk 0:01:28]} 29. Re4 {[%clk 0:02:03]}  Bf8 {[%clk 0:01:22]} 30. Rg4+ {[%clk 0:01:56]}  Bg7 {[%clk 0:01:22]} 31. d6 {[%clk 0:01:56]}  Qf7 {[%clk 0:01:18]} 32. Qg5 {[%clk 0:01:52]}  Rbd8 {[%clk 0:01:11]} 33. c5 {[%clk 0:01:52]}  e4 {[%clk 0:01:07]} 34. Rd1 {[%clk 0:01:47]}  e3 {[%clk 0:01:04]} 35. fxe3 {[%clk 0:01:43]}  dxe3 {[%clk 0:01:03]} 36. Rf4 {[%clk 0:01:38]}  e2 {[%clk 0:00:57]} 37. Re1 {[%clk 0:01:35]}  Qe6 {[%clk 0:00:49]} 38. Rg4 {[%clk 0:01:36]}  Qe3+ {[%clk 0:00:45]} 39. Qxe3 {[%clk 0:01:33]}  Rxe3 {[%clk 0:00:45]} 40. Kf2 {[%clk 0:01:33]}  Rc3 {[%clk 0:00:41]} 41. Rxe2 {[%clk 0:01:31]}  Rd7 {[%clk 0:00:24]} 42. b4 {[%clk 0:01:29]}  Kf7 {[%clk 0:00:17]} 43. Rf4+ {[%clk 0:01:27]}  Bf6 {[%clk 0:00:17]} 44. g4 {[%clk 0:01:27]}  Kg6 {[%clk 0:00:17]} 45. Re6 {[%clk 0:01:27]}  Rf7 {[%clk 0:00:12]} 46. d7 {[%clk 0:01:27]}  Rd3 {[%clk 0:00:13]} 47. c6 {[%clk 0:01:27]}  Kg5 {[%clk 0:00:13]} 48. Rfxf6 {[%clk 0:01:26]} 1-0


[Site "https://www.chess.com"]

[Event "Titled Tuesday Blitz June 6 Late 2023"]
[White "Krishnakumar, Sriram"]
[Black "Cardozo Munar, Carlos Eduardo"]
[WhiteFideId "30915856"]
[BlackFideId "4409477"]
[WhiteElo "2496"]
[BlackElo "2067"]
[Result "1-0"]
[Round "4"]
[TimeControl "180+2"]
[Date "2023.06.07"]
[WhiteClock "0:01:35"]
[BlackClock "0:01:20"]
[Board "127"]

1. e4 {[%clk 0:03:00]}  e6 {[%clk 0:03:00]} 2. d4 {[%clk 0:02:59]}  d5 {[%clk 0:03:00]} 3. Nc3 {[%clk 0:03:00]}  Nf6 {[%clk 0:03:00]} 4. e5 {[%clk 0:03:00]}  Nfd7 {[%clk 0:03:00]} 5. f4 {[%clk 0:03:00]}  c5 {[%clk 0:03:00]} 6. Nf3 {[%clk 0:03:01]}  Nc6 {[%clk 0:03:00]} 7. Be3 {[%clk 0:03:01]}  Qb6 {[%clk 0:03:01]} 8. Na4 {[%clk 0:02:55]}  Qc7 {[%clk 0:02:56]} 9. Nxc5 {[%clk 0:02:52]}  Nxd4 {[%clk 0:02:56]} 10. Nxd4 {[%clk 0:02:47]}  Bxc5 {[%clk 0:02:53]} 11. Bb5 {[%clk 0:02:41]}  O-O {[%clk 0:02:51]} 12. Bxd7 {[%clk 0:02:40]}  Bxd4 {[%clk 0:02:45]} 13. Bxd4 {[%clk 0:02:38]}  Bxd7 {[%clk 0:02:46]} 14. O-O {[%clk 0:02:38]}  g6 {[%clk 0:02:45]} 15. c3 {[%clk 0:02:33]}  b5 {[%clk 0:02:45]} 16. b4 {[%clk 0:02:32]}  a5 {[%clk 0:02:45]} 17. a3 {[%clk 0:02:31]}  axb4 {[%clk 0:02:45]} 18. axb4 {[%clk 0:02:32]}  Ra4 {[%clk 0:02:44]} 19. Qg4 {[%clk 0:02:23]}  Rfa8 {[%clk 0:02:40]} 20. Rae1 {[%clk 0:02:22]}  Qd8 {[%clk 0:02:32]} 21. Qh3 {[%clk 0:02:17]}  Ra2 {[%clk 0:02:25]} 22. Re3 {[%clk 0:02:15]}  Rc2 {[%clk 0:02:20]} 23. Rg3 {[%clk 0:02:10]}  Raa2 {[%clk 0:02:20]} 24. Qh6 {[%clk 0:02:09]}  Qf8 {[%clk 0:02:20]} 25. Qg5 {[%clk 0:02:06]}  Qa8 {[%clk 0:02:02]} 26. h4 {[%clk 0:02:05]}  Ra1 {[%clk 0:02:01]} 27. Rxa1 {[%clk 0:02:02]}  Qxa1+ {[%clk 0:02:01]} 28. Kh2 {[%clk 0:01:57]}  Qa8 {[%clk 0:02:00]} 29. h5 {[%clk 0:01:56]}  Qf8 {[%clk 0:02:00]} 30. f5 {[%clk 0:01:51]}  exf5 {[%clk 0:01:49]} 31. e6 {[%clk 0:01:50]}  fxe6 {[%clk 0:01:41]} 32. hxg6 {[%clk 0:01:49]}  h6 {[%clk 0:01:42]} 33. Qf4 {[%clk 0:01:38]}  Re2 {[%clk 0:01:20]} 34. g7 {[%clk 0:01:35]} 1-0


[Site "https://www.chess.com"]

[Event "Titled Tuesday Blitz June 6 Late 2023"]
[White "Weisz, Bryan"]
[Black "Swicarz, Maciej"]
[WhiteFideId "30934133"]
[BlackFideId "1113585"]
[WhiteElo "2309"]
[BlackElo "2181"]
[Result "1-0"]
[Round "4"]
[TimeControl "180+2"]
[Date "2023.06.07"]
[WhiteClock "0:00:07"]
[BlackClock "0:00:07"]
[Board "128"]

1. b4 {[%clk 0:03:00]}  c6 {[%clk 0:02:58]} 2. Bb2 {[%clk 0:02:59]}  Qb6 {[%clk 0:02:58]} 3. a3 {[%clk 0:02:56]}  a5 {[%clk 0:02:58]} 4. c4 {[%clk 0:02:56]}  axb4 {[%clk 0:02:55]} 5. c5 {[%clk 0:02:57]}  Qc7 {[%clk 0:02:55]} 6. axb4 {[%clk 0:02:56]}  Rxa1 {[%clk 0:02:55]} 7. Bxa1 {[%clk 0:02:57]}  b6 {[%clk 0:02:56]} 8. cxb6 {[%clk 0:02:43]}  Qxb6 {[%clk 0:02:55]} 9. Nc3 {[%clk 0:02:36]}  Qxb4 {[%clk 0:02:52]} 10. e4 {[%clk 0:02:31]}  Nf6 {[%clk 0:02:48]} 11. Nf3 {[%clk 0:02:25]}  Nxe4 {[%clk 0:02:45]} 12. Bd3 {[%clk 0:02:18]}  Nc5 {[%clk 0:02:43]} 13. Bc2 {[%clk 0:02:16]}  Ba6 {[%clk 0:02:42]} 14. d3 {[%clk 0:02:09]}  e6 {[%clk 0:02:10]} 15. O-O {[%clk 0:02:09]}  Bd6 {[%clk 0:02:07]} 16. Re1 {[%clk 0:01:55]}  O-O {[%clk 0:02:06]} 17. Ng5 {[%clk 0:01:38]}  Qh4 {[%clk 0:02:00]} 18. Nf3 {[%clk 0:01:29]}  Qh5 {[%clk 0:01:58]} 19. Ne4 {[%clk 0:01:27]}  Nxe4 {[%clk 0:01:47]} 20. Rxe4 {[%clk 0:01:27]}  f5 {[%clk 0:01:40]} 21. Rh4 {[%clk 0:01:13]}  Qg6 {[%clk 0:01:39]} 22. d4 {[%clk 0:01:09]}  Be7 {[%clk 0:01:30]} 23. Rh3 {[%clk 0:01:04]}  d6 {[%clk 0:01:27]} 24. Rg3 {[%clk 0:00:50]}  Qf7 {[%clk 0:01:27]} 25. d5 {[%clk 0:00:48]}  Bf6 {[%clk 0:01:20]} 26. dxe6 {[%clk 0:00:49]}  Qxe6 {[%clk 0:01:20]} 27. Ng5 {[%clk 0:00:30]}  Qe2 {[%clk 0:01:03]} 28. Bb3+ {[%clk 0:00:24]}  Kh8 {[%clk 0:00:57]} 29. Qxe2 {[%clk 0:00:18]}  Bxe2 {[%clk 0:00:56]} 30. Bxf6 {[%clk 0:00:16]}  d5 {[%clk 0:00:44]} 31. Be7 {[%clk 0:00:09]}  Re8 {[%clk 0:00:42]} 32. Bd6 {[%clk 0:00:09]}  Nd7 {[%clk 0:00:39]} 33. h4 {[%clk 0:00:06]}  h6 {[%clk 0:00:38]} 34. Nf3 {[%clk 0:00:05]}  Nf6 {[%clk 0:00:34]} 35. Rg6 {[%clk 0:00:04]}  Kh7 {[%clk 0:00:33]} 36. h5 {[%clk 0:00:05]}  Nxh5 {[%clk 0:00:33]} 37. Nh4 {[%clk 0:00:05]}  Re4 {[%clk 0:00:29]} 38. Bc2 {[%clk 0:00:03]}  Rxh4 {[%clk 0:00:24]} 39. Bxf5 {[%clk 0:00:03]}  Kg8 {[%clk 0:00:23]} 40. Re6 {[%clk 0:00:04]}  Kf7 {[%clk 0:00:22]} 41. Rxe2 {[%clk 0:00:04]}  Nf4 {[%clk 0:00:20]} 42. Bxf4 {[%clk 0:00:04]}  Rxf4 {[%clk 0:00:20]} 43. Bd3 {[%clk 0:00:04]}  c5 {[%clk 0:00:19]} 44. g3 {[%clk 0:00:05]}  Rd4 {[%clk 0:00:19]} 45. Bf5 {[%clk 0:00:05]}  c4 {[%clk 0:00:18]} 46. Kg2 {[%clk 0:00:04]}  c3 {[%clk 0:00:16]} 47. Kf3 {[%clk 0:00:04]}  Kf6 {[%clk 0:00:15]} 48. Bc2 {[%clk 0:00:04]}  Rc4 {[%clk 0:00:14]} 49. Re3 {[%clk 0:00:04]}  d4 {[%clk 0:00:14]} 50. Re4 {[%clk 0:00:03]}  g5 {[%clk 0:00:11]} 51. Ke2 {[%clk 0:00:03]}  Rb4 {[%clk 0:00:10]} 52. Kd3 {[%clk 0:00:03]}  Kf5 {[%clk 0:00:09]} 53. Rxd4 {[%clk 0:00:04]}  Rxd4+ {[%clk 0:00:09]} 54. Kxd4+ {[%clk 0:00:04]}  Kg4 {[%clk 0:00:10]} 55. Bd1+ {[%clk 0:00:02]}  Kf5 {[%clk 0:00:10]} 56. Kxc3 {[%clk 0:00:03]}  Ke4 {[%clk 0:00:10]} 57. Kd2 {[%clk 0:00:03]}  Kd4 {[%clk 0:00:07]} 58. Ke2 {[%clk 0:00:04]}  Ke4 {[%clk 0:00:08]} 59. Bc2+ {[%clk 0:00:04]}  Ke5 {[%clk 0:00:08]} 60. Kf3 {[%clk 0:00:05]}  h5 {[%clk 0:00:08]} 61. Bg6 {[%clk 0:00:05]}  h4 {[%clk 0:00:08]} 62. gxh4 {[%clk 0:00:06]}  gxh4 {[%clk 0:00:09]} 63. Kg4 {[%clk 0:00:07]}  h3 {[%clk 0:00:06]} 64. Kxh3 {[%clk 0:00:07]}  Kf4 {[%clk 0:00:07]} 65. Kg2 {[%clk 0:00:07]} 1-0


[Site "https://www.chess.com"]

[Event "Titled Tuesday Blitz June 6 Late 2023"]
[White "Kashtanov, Ruslan"]
[Black "Ismayil, Malak"]
[WhiteFideId "4124871"]
[BlackFideId "13412604"]
[WhiteElo "2263"]
[BlackElo "1868"]
[Result "1-0"]
[Round "4"]
[TimeControl "180+2"]
[Date "2023.06.07"]
[WhiteClock "0:00:08"]
[BlackClock "0:00:02"]
[Board "131"]

1. d4 {[%clk 0:02:54]}  Nf6 {[%clk 0:02:59]} 2. c4 {[%clk 0:02:54]}  e6 {[%clk 0:02:59]} 3. g3 {[%clk 0:02:55]}  d5 {[%clk 0:02:58]} 4. Bg2 {[%clk 0:02:54]}  Be7 {[%clk 0:02:58]} 5. Nf3 {[%clk 0:02:53]}  O-O {[%clk 0:02:58]} 6. O-O {[%clk 0:02:49]}  dxc4 {[%clk 0:02:58]} 7. Qa4 {[%clk 0:02:43]}  a6 {[%clk 0:02:57]} 8. Qxc4 {[%clk 0:02:43]}  b5 {[%clk 0:02:57]} 9. Qc2 {[%clk 0:02:43]}  Bb7 {[%clk 0:02:57]} 10. Bf4 {[%clk 0:02:43]}  Nc6 {[%clk 0:02:51]} 11. Nc3 {[%clk 0:02:09]}  Na5 {[%clk 0:02:24]} 12. Rfd1 {[%clk 0:02:05]}  Rc8 {[%clk 0:02:07]} 13. Rac1 {[%clk 0:01:50]}  Nc4 {[%clk 0:02:05]} 14. a4 {[%clk 0:01:39]}  b4 {[%clk 0:01:46]} 15. Nb1 {[%clk 0:01:38]}  Nd6 {[%clk 0:01:38]} 16. Nbd2 {[%clk 0:01:35]}  a5 {[%clk 0:01:33]} 17. Nb3 {[%clk 0:01:32]}  Be4 {[%clk 0:01:05]} 18. Qc5 {[%clk 0:01:02]}  Nd5 {[%clk 0:01:05]} 19. Nxa5 {[%clk 0:00:58]}  Nxf4 {[%clk 0:00:32]} 20. gxf4 {[%clk 0:00:59]}  Nb7 {[%clk 0:00:19]} 21. Nxb7 {[%clk 0:00:47]}  Bxb7 {[%clk 0:00:20]} 22. Qb5 {[%clk 0:00:44]}  Bd5 {[%clk 0:00:17]} 23. Ne5 {[%clk 0:00:35]}  c6 {[%clk 0:00:16]} 24. Qd3 {[%clk 0:00:32]}  Qd6 {[%clk 0:00:09]} 25. e4 {[%clk 0:00:31]}  Ba2 {[%clk 0:00:09]} 26. Ra1 {[%clk 0:00:14]}  b3 {[%clk 0:00:09]} 27. Qe3 {[%clk 0:00:12]}  f6 {[%clk 0:00:08]} 28. Nc4 {[%clk 0:00:11]}  Qb4 {[%clk 0:00:09]} 29. Rdc1 {[%clk 0:00:09]}  Qxa4 {[%clk 0:00:07]} 30. Nb6 {[%clk 0:00:09]}  Qb4 {[%clk 0:00:03]} 31. Nxc8 {[%clk 0:00:10]}  Rxc8 {[%clk 0:00:03]} 32. Bh3 {[%clk 0:00:10]}  Qd6 {[%clk 0:00:04]} 33. e5 {[%clk 0:00:09]}  fxe5 {[%clk 0:00:03]} 34. dxe5 {[%clk 0:00:08]}  Qd5 {[%clk 0:00:02]} 35. Rd1 {[%clk 0:00:08]}  Qc4 {[%clk 0:00:02]} 36. Rd4 {[%clk 0:00:08]}  Qc5 {[%clk 0:00:02]} 37. Bxe6+ {[%clk 0:00:07]}  Kf8 {[%clk 0:00:02]} 38. Bxc8 {[%clk 0:00:08]} 1-0


[Site "https://www.chess.com"]